[Event "Early-Titled-Tuesday-Blitz-February-20-2024"]
[Site "Chess.com"]
[Date "2024.02.20"]
[Round "9"]
[White "margarita_2703"]
[Black "AlexanderKing"]
[Result "1/2-1/2"]
[WhiteElo "2392"]
[BlackElo "2616"]
[TimeControl "180+1"]
[EndTime "9:48:51 PST"]
[Termination "Game drawn - insufficient material"]

1. e4 {[%clk 0:02:10.3]} 1... e6 {[%clk 0:03:00.9]} 2. d4 {[%clk 0:02:09.9]}
2... d5 {[%clk 0:03:01.5]} 3. e5 {[%clk 0:01:41]} 3... c5 {[%clk 0:03:01.1]} 4.
c3 {[%clk 0:01:33.9]} 4... Qb6 {[%clk 0:03:00.9]} 5. Nf3 {[%clk 0:01:34.4]} 5...
Bd7 {[%clk 0:02:59.6]} 6. Bd3 {[%clk 0:01:33.8]} 6... Bb5 {[%clk 0:02:59.9]} 7.
dxc5 {[%clk 0:01:34.4]} 7... Bxc5 {[%clk 0:03:00]} 8. b4 {[%clk 0:01:34.9]} 8...
Bf8 {[%clk 0:02:59.6]} 9. Be3 {[%clk 0:01:34.7]} 9... Qa6 {[%clk 0:02:52.1]} 10.
Bc2 {[%clk 0:01:34.6]} 10... Ne7 {[%clk 0:02:14.2]} 11. a4 {[%clk 0:01:34]}
11... Nf5 {[%clk 0:02:01.7]} 12. Na3 {[%clk 0:01:34.9]} 12... Nxe3 {[%clk
0:01:52.2]} 13. fxe3 {[%clk 0:01:33.8]} 13... Bc4 {[%clk 0:01:50.1]} 14. Nd4
{[%clk 0:01:26.2]} 14... Nd7 {[%clk 0:01:41.8]} 15. Qd2 {[%clk 0:01:16.9]} 15...
Nxe5 {[%clk 0:01:37.2]} 16. e4 {[%clk 0:01:01]} 16... Be7 {[%clk 0:01:07.9]} 17.
exd5 {[%clk 0:00:59.7]} 17... Bxd5 {[%clk 0:01:06.4]} 18. Qe3 {[%clk 0:00:54]}
18... Nc4 {[%clk 0:00:59.2]} 19. Nxc4 {[%clk 0:00:53.3]} 19... Qxc4 {[%clk
0:01:00.1]} 20. Bb3 {[%clk 0:00:52.5]} 20... Qc7 {[%clk 0:00:50]} 21. Bxd5
{[%clk 0:00:51.2]} 21... exd5 {[%clk 0:00:50.9]} 22. Nf5 {[%clk 0:00:49.6]}
22... g6 {[%clk 0:00:42.4]} 23. Nd4 {[%clk 0:00:20]} 23... O-O {[%clk
0:00:34.8]} 24. O-O {[%clk 0:00:20]} 24... Rfe8 {[%clk 0:00:31.6]} 25. Qf3
{[%clk 0:00:19.2]} 25... Bf8 {[%clk 0:00:24.1]} 26. Qxd5 {[%clk 0:00:18.1]}
26... Bg7 {[%clk 0:00:19.5]} 27. Rad1 {[%clk 0:00:16]} 27... Rad8 {[%clk
0:00:18.5]} 28. Qf3 {[%clk 0:00:15.8]} 28... Bxd4+ {[%clk 0:00:13.8]} 29. Rxd4
{[%clk 0:00:16.2]} 29... Rxd4 {[%clk 0:00:13.3]} 30. cxd4 {[%clk 0:00:17.1]}
30... Re7 {[%clk 0:00:06.4]} 31. Qd5 {[%clk 0:00:17.3]} 31... Rd7 {[%clk
0:00:06.4]} 32. Qc5 {[%clk 0:00:17.2]} 32... Qxc5 {[%clk 0:00:02]} 33. dxc5
{[%clk 0:00:18.1]} 33... Rd4 {[%clk 0:00:02.3]} 34. Rb1 {[%clk 0:00:18.7]} 34...
Rc4 {[%clk 0:00:02.4]} 35. Kf2 {[%clk 0:00:18.3]} 35... h5 {[%clk 0:00:02.3]}
36. Ke3 {[%clk 0:00:18.4]} 36... Rc2 {[%clk 0:00:02.4]} 37. Kd4 {[%clk
0:00:14.4]} 37... Kf8 {[%clk 0:00:02.7]} 38. b5 {[%clk 0:00:14.6]} 38... Ke7
{[%clk 0:00:03.2]} 39. Re1+ {[%clk 0:00:14]} 39... Kd7 {[%clk 0:00:03.1]} 40.
Rf1 {[%clk 0:00:12.8]} 40... f5 {[%clk 0:00:03.4]} 41. Re1 {[%clk 0:00:09.7]}
41... Rxg2 {[%clk 0:00:03.2]} 42. Kd5 {[%clk 0:00:10.1]} 42... Rd2+ {[%clk
0:00:03.3]} 43. Kc4 {[%clk 0:00:09.6]} 43... Rxh2 {[%clk 0:00:03.4]} 44. Rg1
{[%clk 0:00:09.4]} 44... Rh4+ {[%clk 0:00:03.3]} 45. Kd5 {[%clk 0:00:09]} 45...
Rg4 {[%clk 0:00:03.8]} 46. c6+ {[%clk 0:00:05.6]} 46... bxc6+ {[%clk 0:00:03.9]}
47. bxc6+ {[%clk 0:00:06.5]} 47... Kc8 {[%clk 0:00:02]} 48. Rd1 {[%clk
0:00:02.7]} 48... Rxa4 {[%clk 0:00:02]} 49. Kd6 {[%clk 0:00:03.2]} 49... Ra2
{[%clk 0:00:01.4]} 50. Rd4 {[%clk 0:00:02.7]} 50... h4 {[%clk 0:00:01.4]} 51.
Rxh4 {[%clk 0:00:02.6]} 51... Rd2+ {[%clk 0:00:01.8]} 52. Kc5 {[%clk 0:00:03.4]}
52... Kc7 {[%clk 0:00:01.2]} 53. Rh7+ {[%clk 0:00:03.3]} 53... Kc8 {[%clk
0:00:01.7]} 54. Rxa7 {[%clk 0:00:03.3]} 54... f4 {[%clk 0:00:01.7]} 55. Rg7
{[%clk 0:00:03.6]} 55... Rg2 {[%clk 0:00:01.2]} 56. Kd6 {[%clk 0:00:03.7]} 56...
Rd2+ {[%clk 0:00:01]} 57. Kc5 {[%clk 0:00:04.1]} 57... f3 {[%clk 0:00:01.2]} 58.
Rxg6 {[%clk 0:00:04]} 58... f2 {[%clk 0:00:02.1]} 59. Rf6 {[%clk 0:00:03.9]}
59... Rc2+ {[%clk 0:00:02.6]} 60. Kb6 {[%clk 0:00:03.4]} 60... Rb2+ {[%clk
0:00:03]} 61. Kc5 {[%clk 0:00:03.8]} 61... Kc7 {[%clk 0:00:03.1]} 62. Rf7+
{[%clk 0:00:04.1]} 62... Kd8 {[%clk 0:00:03]} 63. Kd6 {[%clk 0:00:04.5]} 63...
Rd2+ {[%clk 0:00:02.7]} 64. Ke6 {[%clk 0:00:04.8]} 64... Ke8 {[%clk 0:00:01.9]}
65. Rf4 {[%clk 0:00:04.7]} 65... Re2+ {[%clk 0:00:01.9]} 66. Kd6 {[%clk
0:00:04.8]} 66... Rd2+ {[%clk 0:00:02]} 67. Kc7 {[%clk 0:00:05.2]} 67... Ke7
{[%clk 0:00:01.2]} 68. Kb7 {[%clk 0:00:04]} 68... Rb2+ {[%clk 0:00:01.2]} 69.
Kc8 {[%clk 0:00:04.2]} 69... Ke6 {[%clk 0:00:01.5]} 70. c7 {[%clk 0:00:04.4]}
70... Ke5 {[%clk 0:00:02.1]} 71. Rf8 {[%clk 0:00:04.4]} 71... Ke4 {[%clk
0:00:01.8]} 72. Kd8 {[%clk 0:00:04.5]} 72... Rd2+ {[%clk 0:00:02.4]} 73. Ke7
{[%clk 0:00:04.2]} 73... Rc2 {[%clk 0:00:02.9]} 74. Rxf2 {[%clk 0:00:04.2]}
74... Rxc7+ {[%clk 0:00:03.5]} 75. Kd6 {[%clk 0:00:04.5]} 75... Rc3 {[%clk
0:00:04.4]} 76. Re2+ {[%clk 0:00:04.6]} 76... Re3 {[%clk 0:00:04.9]} 77. Rxe3+
{[%clk 0:00:04.9]} 77... Kxe3 {[%clk 0:00:05.1]} 1/2-1/2

[Event "Early-Titled-Tuesday-Blitz-February-20-2024"]
[Site "Chess.com"]
[Date "2024.02.20"]
[Round "9"]
[White "Statham_01"]
[Black "Byniolus"]
[Result "0-1"]
[WhiteElo "2576"]
[BlackElo "2833"]
[TimeControl "180+1"]
[EndTime "9:48:57 PST"]
[Termination "Byniolus won by resignation"]

1. e4 {[%clk 0:03:00.9]} 1... d6 {[%clk 0:03:00.1]} 2. d4 {[%clk 0:02:55.2]}
2... Nf6 {[%clk 0:03:00.4]} 3. Nc3 {[%clk 0:02:55.5]} 3... c6 {[%clk 0:03:00.5]}
4. f4 {[%clk 0:02:52.8]} 4... Qb6 {[%clk 0:03:00.5]} 5. Nf3 {[%clk 0:02:49.6]}
5... Bg4 {[%clk 0:02:59.5]} 6. e5 {[%clk 0:02:45.6]} 6... Nd5 {[%clk 0:02:59.1]}
7. Nxd5 {[%clk 0:02:44.5]} 7... cxd5 {[%clk 0:03:00]} 8. c3 {[%clk 0:02:42.1]}
8... e6 {[%clk 0:02:59.4]} 9. Bd3 {[%clk 0:02:40.6]} 9... g6 {[%clk 0:02:58.9]}
10. O-O {[%clk 0:02:39.6]} 10... Nc6 {[%clk 0:02:59]} 11. Bc2 {[%clk 0:02:26.9]}
11... Be7 {[%clk 0:02:55.9]} 12. Rb1 {[%clk 0:02:24.1]} 12... O-O-O {[%clk
0:02:51.8]} 13. b4 {[%clk 0:02:20.8]} 13... Kb8 {[%clk 0:02:51.6]} 14. a4 {[%clk
0:02:18.1]} 14... Qc7 {[%clk 0:02:46.7]} 15. a5 {[%clk 0:02:15.4]} 15... Rc8
{[%clk 0:02:45.4]} 16. Bd2 {[%clk 0:02:14.1]} 16... Nxd4 {[%clk 0:02:39.2]} 17.
cxd4 {[%clk 0:01:40.1]} 17... Qxc2 {[%clk 0:02:37.7]} 18. Qe1 {[%clk 0:01:32.6]}
18... Bxf3 {[%clk 0:02:29.5]} 19. Rxf3 {[%clk 0:01:33.5]} 19... Qe4 {[%clk
0:02:22.5]} 20. Be3 {[%clk 0:01:16]} 20... Rc2 {[%clk 0:02:15.7]} 21. a6 {[%clk
0:01:09.1]} 21... b6 {[%clk 0:01:58.2]} 22. Rf2 {[%clk 0:01:09.6]} 22... Rxf2
{[%clk 0:01:53.5]} 23. Kxf2 {[%clk 0:01:10.5]} 23... Rc8 {[%clk 0:01:50.4]} 24.
Rc1 {[%clk 0:01:05.2]} 24... Rc2+ {[%clk 0:01:48]} 25. Rxc2 {[%clk 0:01:03.2]}
25... Qxc2+ {[%clk 0:01:48.9]} 26. Kg1 {[%clk 0:00:56.1]} 26... Qd3 {[%clk
0:01:45.6]} 27. Qc1 {[%clk 0:00:48.4]} 27... Qc4 {[%clk 0:01:32.3]} 28. Qb2
{[%clk 0:00:39]} 28... Qxa6 {[%clk 0:01:23.4]} 29. f5 {[%clk 0:00:39.6]} 29...
dxe5 {[%clk 0:01:14]} 30. fxe6 {[%clk 0:00:34.5]} 30... fxe6 {[%clk 0:01:14.9]}
31. Bf2 {[%clk 0:00:32.1]} 31... e4 {[%clk 0:00:43.2]} 32. Bg3+ {[%clk
0:00:31.6]} 32... Kb7 {[%clk 0:00:42.4]} 33. b5 {[%clk 0:00:28.7]} 33... Qa4
{[%clk 0:00:33.7]} 34. h4 {[%clk 0:00:25]} 34... Qc4 {[%clk 0:00:17.3]} 35. Kh2
{[%clk 0:00:25.2]} 35... e3 {[%clk 0:00:10.9]} 36. h5 {[%clk 0:00:19.5]} 36...
gxh5 {[%clk 0:00:10]} 37. Qb1 {[%clk 0:00:19.6]} 37... h4 {[%clk 0:00:08.2]} 38.
Be5 {[%clk 0:00:19]} 38... e2 {[%clk 0:00:07.6]} 39. Qxh7 {[%clk 0:00:17.7]}
39... Qb4 {[%clk 0:00:03.2]} 40. Qc2 {[%clk 0:00:16.4]} 40... Qxb5 {[%clk
0:00:02.2]} 41. Qc7+ {[%clk 0:00:14.4]} 41... Ka6 {[%clk 0:00:03.1]} 42. Qc8+
{[%clk 0:00:09.6]} 42... Ka5 {[%clk 0:00:03.4]} 43. Qc3+ {[%clk 0:00:09]} 43...
Bb4 {[%clk 0:00:02.6]} 44. Qa1+ {[%clk 0:00:04.6]} 44... Qa4 {[%clk 0:00:03.2]}
45. Qb1 {[%clk 0:00:02.5]} 45... e1=Q {[%clk 0:00:03.6]} 46. Qh7 {[%clk
0:00:02.6]} 46... Qg3+ {[%clk 0:00:03.9]} 47. Bxg3 {[%clk 0:00:02.7]} 47...
hxg3+ {[%clk 0:00:03.4]} 48. Kh3 {[%clk 0:00:03.6]} 48... Qc6 {[%clk 0:00:02.5]}
49. Qxa7+ {[%clk 0:00:03.6]} 49... Kb5 {[%clk 0:00:02.5]} 50. Qa2 {[%clk
0:00:03.3]} 50... Qc4 {[%clk 0:00:01.8]} 51. Qa8 {[%clk 0:00:03.9]} 51... Qxd4
{[%clk 0:00:02]} 52. Qe8+ {[%clk 0:00:04.6]} 52... Kc4 {[%clk 0:00:02.6]} 53.
Qc6+ {[%clk 0:00:04.2]} 53... Qc5 {[%clk 0:00:02.8]} 54. Qxe6 {[%clk 0:00:04.5]}
54... Bc3 {[%clk 0:00:03.5]} 55. Qe2+ {[%clk 0:00:04.6]} 55... Kb4 {[%clk
0:00:03.8]} 56. Qg4+ {[%clk 0:00:03.5]} 56... d4 {[%clk 0:00:04]} 57. Qg6 {[%clk
0:00:01.2]} 57... b5 {[%clk 0:00:03.4]} 58. Qb1+ {[%clk 0:00:01.9]} 58... Kc4
{[%clk 0:00:03.5]} 59. Qa2+ {[%clk 0:00:02.3]} 59... Kd3 {[%clk 0:00:03.9]} 60.
Qb1+ {[%clk 0:00:03]} 60... Ke3 {[%clk 0:00:03.9]} 61. Qd1 {[%clk 0:00:03.4]}
61... Ke4 {[%clk 0:00:03.3]} 62. Qf3+ {[%clk 0:00:03.3]} 62... Ke5 {[%clk
0:00:04]} 63. Qh5+ {[%clk 0:00:03.8]} 63... Kd6 {[%clk 0:00:04.1]} 64. Qg6+
{[%clk 0:00:04.2]} 64... Kd5 {[%clk 0:00:05]} 65. Qf7+ {[%clk 0:00:02.8]} 65...
Kc6 {[%clk 0:00:05.3]} 66. Qe8+ {[%clk 0:00:02.9]} 66... Kb6 {[%clk 0:00:05.7]}
67. Qg6+ {[%clk 0:00:02.4]} 67... Ka5 {[%clk 0:00:06.1]} 68. Qc2 {[%clk
0:00:02.4]} 68... Qh5+ {[%clk 0:00:05.1]} 69. Kxg3 {[%clk 0:00:03.1]} 69... Qg5+
{[%clk 0:00:05]} 70. Kh3 {[%clk 0:00:03.2]} 70... Qe3+ {[%clk 0:00:05]} 71. Kh2
{[%clk 0:00:02.9]} 71... Qf4+ {[%clk 0:00:04.4]} 72. Kh3 {[%clk 0:00:03]} 72...
Qd2 {[%clk 0:00:04.6]} 73. Qe4 {[%clk 0:00:02.6]} 73... Qe3+ {[%clk 0:00:04.2]}
74. Qxe3 {[%clk 0:00:02.6]} 74... dxe3 {[%clk 0:00:05.1]} 75. Kg3 {[%clk
0:00:03.5]} 75... e2 {[%clk 0:00:05.6]} 76. Kf2 {[%clk 0:00:04]} 76... e1=Q+
{[%clk 0:00:06.5]} 0-1

[Event "Early-Titled-Tuesday-Blitz-February-20-2024"]
[Site "Chess.com"]
[Date "2024.02.20"]
[Round "9"]
[White "Jumbo"]
[Black "Fandorine"]
[Result "1/2-1/2"]
[WhiteElo "2833"]
[BlackElo "2954"]
[TimeControl "180+1"]
[EndTime "9:48:59 PST"]
[Termination "Game drawn by repetition"]

1. e4 {[%clk 0:02:56]} 1... e5 {[%clk 0:02:59.1]} 2. Nf3 {[%clk 0:02:56.2]} 2...
Nc6 {[%clk 0:02:59.6]} 3. Bc4 {[%clk 0:02:56.6]} 3... Nf6 {[%clk 0:02:59.5]} 4.
d3 {[%clk 0:02:57]} 4... Be7 {[%clk 0:02:58.6]} 5. O-O {[%clk 0:02:54.9]} 5...
O-O {[%clk 0:02:59]} 6. Re1 {[%clk 0:02:55]} 6... d6 {[%clk 0:02:59]} 7. a4
{[%clk 0:02:53.2]} 7... Na5 {[%clk 0:02:56.6]} 8. Ba2 {[%clk 0:02:52.5]} 8... c5
{[%clk 0:02:57.2]} 9. Nc3 {[%clk 0:02:50.7]} 9... h6 {[%clk 0:02:53.9]} 10. h3
{[%clk 0:02:49.5]} 10... Nc6 {[%clk 0:02:53.1]} 11. Bd2 {[%clk 0:02:40.9]} 11...
Rb8 {[%clk 0:02:50.5]} 12. Ne2 {[%clk 0:02:39.4]} 12... Be6 {[%clk 0:02:46.9]}
13. Bxe6 {[%clk 0:02:37.8]} 13... fxe6 {[%clk 0:02:47.8]} 14. Ng3 {[%clk
0:02:37.4]} 14... Qe8 {[%clk 0:02:47.8]} 15. c3 {[%clk 0:02:37.3]} 15... Nh5
{[%clk 0:02:40.1]} 16. Nxh5 {[%clk 0:02:24.2]} 16... Qxh5 {[%clk 0:02:41]} 17.
b4 {[%clk 0:02:24.2]} 17... b6 {[%clk 0:02:33.9]} 18. b5 {[%clk 0:02:12.1]}
18... Na5 {[%clk 0:02:22.3]} 19. c4 {[%clk 0:02:04.2]} 19... Bd8 {[%clk
0:02:21.9]} 20. Bxa5 {[%clk 0:01:56.7]} 20... bxa5 {[%clk 0:02:21.7]} 21. Ra2
{[%clk 0:01:54.8]} 21... Rb7 {[%clk 0:02:21.4]} 22. Nh2 {[%clk 0:01:51.9]} 22...
Qg6 {[%clk 0:02:17.8]} 23. Qg4 {[%clk 0:01:51.8]} 23... Qe8 {[%clk 0:02:17.2]}
24. Re3 {[%clk 0:01:41.5]} 24... Rf4 {[%clk 0:02:03.7]} 25. Qd1 {[%clk
0:01:37.4]} 25... Qg6 {[%clk 0:01:57.4]} 26. g3 {[%clk 0:01:27.7]} 26... Rf8
{[%clk 0:01:55.1]} 27. Rf3 {[%clk 0:01:18.6]} 27... Bf6 {[%clk 0:01:51.7]} 28.
Qe1 {[%clk 0:01:06.5]} 28... Rbf7 {[%clk 0:01:47.5]} 29. Kg2 {[%clk 0:01:02.2]}
29... Bd8 {[%clk 0:01:41.5]} 30. Rxf7 {[%clk 0:01:02.3]} 30... Qxf7 {[%clk
0:01:41]} 31. Re2 {[%clk 0:01:02.7]} 31... d5 {[%clk 0:01:13.1]} 32. Re3 {[%clk
0:00:47.9]} 32... dxc4 {[%clk 0:01:13]} 33. dxc4 {[%clk 0:00:47.8]} 33... Qd7
{[%clk 0:01:11.9]} 34. Nf3 {[%clk 0:00:47]} 34... Bc7 {[%clk 0:01:04.2]} 35. Kf1
{[%clk 0:00:12.7]} 35... Rd8 {[%clk 0:00:57.3]} 36. Ke2 {[%clk 0:00:13.1]} 36...
Qf7 {[%clk 0:00:56.4]} 37. Qc3 {[%clk 0:00:10.2]} 37... Rd4 {[%clk 0:00:48.4]}
38. Qc2 {[%clk 0:00:08.8]} 38... Rd8 {[%clk 0:00:15.5]} 39. Rd3 {[%clk
0:00:08.4]} 39... Rf8 {[%clk 0:00:16.2]} 40. Kf1 {[%clk 0:00:08.7]} 40... Qg6
{[%clk 0:00:14.5]} 41. Re3 {[%clk 0:00:07.9]} 41... Rd8 {[%clk 0:00:13]} 42. Qe2
{[%clk 0:00:07.5]} 42... Qh5 {[%clk 0:00:10.5]} 43. Kg2 {[%clk 0:00:08]} 43...
Qe8 {[%clk 0:00:10.2]} 44. Rd3 {[%clk 0:00:08.3]} 44... Rd4 {[%clk 0:00:04.5]}
45. Nxd4 {[%clk 0:00:07.6]} 45... exd4 {[%clk 0:00:05.4]} 46. e5 {[%clk
0:00:07.8]} 46... Qg6 {[%clk 0:00:05.1]} 47. f4 {[%clk 0:00:07]} 47... h5 {[%clk
0:00:04.9]} 48. h4 {[%clk 0:00:06.8]} 48... Qf5 {[%clk 0:00:04.9]} 49. Qf3
{[%clk 0:00:06.6]} 49... Kh7 {[%clk 0:00:04.4]} 50. Kf2 {[%clk 0:00:06.9]} 50...
Kh6 {[%clk 0:00:03.9]} 51. Ke2 {[%clk 0:00:07.5]} 51... Bd8 {[%clk 0:00:04]} 52.
Kd2 {[%clk 0:00:07.6]} 52... Bb6 {[%clk 0:00:04.1]} 53. Kc2 {[%clk 0:00:08]}
53... Bd8 {[%clk 0:00:04.6]} 54. Qe2 {[%clk 0:00:08.1]} 54... Bc7 {[%clk
0:00:04.2]} 55. Kb3 {[%clk 0:00:08.5]} 55... Kh7 {[%clk 0:00:03.3]} 56. Rd1
{[%clk 0:00:08.4]} 56... g6 {[%clk 0:00:03.3]} 57. Qd3 {[%clk 0:00:08.4]} 57...
Qh3 {[%clk 0:00:03.1]} 58. Rd2 {[%clk 0:00:08.7]} 58... Qh1 {[%clk 0:00:02.3]}
59. Kb2 {[%clk 0:00:08.8]} 59... Qg1 {[%clk 0:00:02.5]} 60. Re2 {[%clk
0:00:08.6]} 60... Qf1 {[%clk 0:00:02.7]} 61. Rd2 {[%clk 0:00:08.2]} 61... Qe1
{[%clk 0:00:03.2]} 62. Ka2 {[%clk 0:00:05.4]} 62... Qc1 {[%clk 0:00:03.5]} 63.
Rc2 {[%clk 0:00:05.8]} 63... Qe1 {[%clk 0:00:02.8]} 64. Re2 {[%clk 0:00:04]}
64... Qb4 {[%clk 0:00:03.2]} 65. Qb3 {[%clk 0:00:04.6]} 65... Bb6 {[%clk
0:00:02.5]} 66. Qxb4 {[%clk 0:00:04.5]} 66... axb4 {[%clk 0:00:03.1]} 67. Kb3
{[%clk 0:00:04.9]} 67... Kg7 {[%clk 0:00:04]} 68. Rd2 {[%clk 0:00:05.1]} 68...
Ba5 {[%clk 0:00:04.3]} 69. Ra2 {[%clk 0:00:05.1]} 69... Kf7 {[%clk 0:00:04.7]}
70. Rg2 {[%clk 0:00:05.6]} 70... Kg7 {[%clk 0:00:03.6]} 71. g4 {[%clk
0:00:06.2]} 71... hxg4 {[%clk 0:00:04.1]} 72. Rxg4 {[%clk 0:00:06.9]} 72... Kh6
{[%clk 0:00:05]} 73. Rg2 {[%clk 0:00:06]} 73... Bd8 {[%clk 0:00:05.2]} 74. Rg4
{[%clk 0:00:05.1]} 74... Kh5 {[%clk 0:00:05.5]} 75. Rg2 {[%clk 0:00:05.6]} 75...
Kh6 {[%clk 0:00:05.2]} 76. Rh2 {[%clk 0:00:05.4]} 76... Kh5 {[%clk 0:00:05.2]}
77. Rg2 {[%clk 0:00:05.8]} 77... Kh6 {[%clk 0:00:05.7]} 1/2-1/2

[Event "Early-Titled-Tuesday-Blitz-February-20-2024"]
[Site "Chess.com"]
[Date "2024.02.20"]
[Round "9"]
[White "Atousa"]
[Black "agvega14"]
[Result "1-0"]
[WhiteElo "2445"]
[BlackElo "2221"]
[TimeControl "180+1"]
[EndTime "9:48:59 PST"]
[Termination "Atousa won on time"]

1. Nf3 {[%clk 0:02:19.6]} 1... d5 {[%clk 0:02:33.7]} 2. g3 {[%clk 0:02:20.5]}
2... Nf6 {[%clk 0:02:32.7]} 3. Bg2 {[%clk 0:02:21.4]} 3... Bf5 {[%clk
0:02:31.5]} 4. O-O {[%clk 0:02:22.3]} 4... e6 {[%clk 0:02:31.1]} 5. d3 {[%clk
0:02:23.2]} 5... h6 {[%clk 0:02:30.8]} 6. Nbd2 {[%clk 0:02:24.1]} 6... Be7
{[%clk 0:02:30.7]} 7. Re1 {[%clk 0:02:25]} 7... Bh7 {[%clk 0:02:30.7]} 8. e4
{[%clk 0:02:25.7]} 8... O-O {[%clk 0:02:30.7]} 9. Qe2 {[%clk 0:02:25.2]} 9... c5
{[%clk 0:02:29.2]} 10. c3 {[%clk 0:02:25.7]} 10... Nc6 {[%clk 0:02:28.9]} 11. h3
{[%clk 0:02:25.4]} 11... Rc8 {[%clk 0:02:28.6]} 12. Kh2 {[%clk 0:02:25.4]} 12...
a5 {[%clk 0:02:15.9]} 13. a4 {[%clk 0:02:21]} 13... Re8 {[%clk 0:02:13]} 14. Ng1
{[%clk 0:02:04.8]} 14... Bf8 {[%clk 0:01:47.2]} 15. f4 {[%clk 0:02:02]} 15...
Qc7 {[%clk 0:01:39.8]} 16. Ngf3 {[%clk 0:01:55.6]} 16... dxe4 {[%clk 0:01:33.7]}
17. dxe4 {[%clk 0:01:54.1]} 17... Red8 {[%clk 0:01:32]} 18. Rf1 {[%clk
0:01:25.5]} 18... Rd7 {[%clk 0:01:12.3]} 19. Ne1 {[%clk 0:01:14.6]} 19... Rcd8
{[%clk 0:01:06.9]} 20. Nc4 {[%clk 0:01:01.7]} 20... b6 {[%clk 0:00:56.7]} 21. e5
{[%clk 0:00:47.4]} 21... Nd5 {[%clk 0:00:55.7]} 22. Be3 {[%clk 0:00:36.1]} 22...
Nce7 {[%clk 0:00:54.3]} 23. Nd6 {[%clk 0:00:25]} 23... Nxe3 {[%clk 0:00:52]} 24.
Qxe3 {[%clk 0:00:18.6]} 24... Nf5 {[%clk 0:00:51.3]} 25. Nxf5 {[%clk 0:00:14.3]}
25... Bxf5 {[%clk 0:00:52.2]} 26. Nf3 {[%clk 0:00:11]} 26... Rd3 {[%clk
0:00:50.2]} 27. Qf2 {[%clk 0:00:11.3]} 27... Be4 {[%clk 0:00:48.1]} 28. Rae1
{[%clk 0:00:10.1]} 28... Bxf3 {[%clk 0:00:46.7]} 29. Bxf3 {[%clk 0:00:11]} 29...
Rd2 {[%clk 0:00:40.9]} 30. Re2 {[%clk 0:00:11.5]} 30... Rxe2 {[%clk 0:00:36]}
31. Qxe2 {[%clk 0:00:12.4]} 31... Qd7 {[%clk 0:00:35.3]} 32. Rd1 {[%clk
0:00:12.5]} 32... Qc7 {[%clk 0:00:34.2]} 33. Rxd8 {[%clk 0:00:11.7]} 33... Qxd8
{[%clk 0:00:35.1]} 34. Qd1 {[%clk 0:00:11.7]} 34... Qxd1 {[%clk 0:00:34.3]} 35.
Bxd1 {[%clk 0:00:11.2]} 35... Be7 {[%clk 0:00:35.2]} 36. Kg2 {[%clk 0:00:11.4]}
36... Kf8 {[%clk 0:00:34.7]} 37. Kf2 {[%clk 0:00:11.8]} 37... Ke8 {[%clk
0:00:35.2]} 38. Ke2 {[%clk 0:00:12]} 38... Kd7 {[%clk 0:00:36.1]} 39. Kd3 {[%clk
0:00:12.2]} 39... Kc7 {[%clk 0:00:35]} 40. Kc4 {[%clk 0:00:12]} 40... Bd8 {[%clk
0:00:31.7]} 41. Bh5 {[%clk 0:00:10.7]} 41... g6 {[%clk 0:00:26.6]} 42. Bf3
{[%clk 0:00:10.9]} 42... Be7 {[%clk 0:00:24.7]} 43. Kb5 {[%clk 0:00:11.4]} 43...
Bd8 {[%clk 0:00:22.7]} 44. Bc6 {[%clk 0:00:11.7]} 44... Kb8 {[%clk 0:00:20.3]}
45. Be8 {[%clk 0:00:11.9]} 45... f6 {[%clk 0:00:19.5]} 46. exf6 {[%clk
0:00:09.4]} 46... Bxf6 {[%clk 0:00:18.7]} 47. Bxg6 {[%clk 0:00:10.1]} 47... Kc7
{[%clk 0:00:18.3]} 48. Bf7 {[%clk 0:00:09.7]} 48... e5 {[%clk 0:00:18.1]} 49.
fxe5 {[%clk 0:00:08]} 49... Bxe5 {[%clk 0:00:19]} 50. g4 {[%clk 0:00:08.5]}
50... Bf4 {[%clk 0:00:18.9]} 51. Bd5 {[%clk 0:00:08.4]} 51... Bc1 {[%clk
0:00:18.6]} 52. b3 {[%clk 0:00:08.5]} 52... Bd2 {[%clk 0:00:18.7]} 53. Kc4
{[%clk 0:00:09]} 53... Be1 {[%clk 0:00:18.1]} 54. Kd3 {[%clk 0:00:09]} 54... Kd6
{[%clk 0:00:17.3]} 55. Bb7 {[%clk 0:00:08.7]} 55... Kc7 {[%clk 0:00:17]} 56. Bg2
{[%clk 0:00:07.9]} 56... Kd6 {[%clk 0:00:17.4]} 57. c4 {[%clk 0:00:08]} 57...
Bh4 {[%clk 0:00:16.7]} 58. Ke4 {[%clk 0:00:08.3]} 58... Bg5 {[%clk 0:00:14.9]}
59. Kf5 {[%clk 0:00:08.3]} 59... Bd2 {[%clk 0:00:13.7]} 60. h4 {[%clk
0:00:08.4]} 60... Be3 {[%clk 0:00:12]} 61. Kg6 {[%clk 0:00:07.7]} 61... Ke5
{[%clk 0:00:11.3]} 62. g5 {[%clk 0:00:05.1]} 62... hxg5 {[%clk 0:00:10.9]} 63.
hxg5 {[%clk 0:00:06]} 63... Kd4 {[%clk 0:00:09.7]} 64. Kf5 {[%clk 0:00:05.9]}
64... Kc3 {[%clk 0:00:08.2]} 65. Bc6 {[%clk 0:00:05.9]} 65... Kxb3 {[%clk
0:00:07.8]} 66. Bb5 {[%clk 0:00:06.7]} 66... Kc3 {[%clk 0:00:07.8]} 67. g6
{[%clk 0:00:07.3]} 67... Bd4 {[%clk 0:00:06.5]} 68. Ke6 {[%clk 0:00:07.4]} 68...
Bg7 {[%clk 0:00:05]} 69. Kf7 {[%clk 0:00:08.3]} 69... Bd4 {[%clk 0:00:03.5]} 70.
g7 {[%clk 0:00:09.2]} 70... Bxg7 {[%clk 0:00:03.4]} 71. Kxg7 {[%clk 0:00:10.1]}
71... Kd4 {[%clk 0:00:03.8]} 72. Kf7 {[%clk 0:00:11]} 72... Ke5 {[%clk
0:00:04.7]} 73. Ke7 {[%clk 0:00:11.4]} 73... Kd4 {[%clk 0:00:04.7]} 74. Kd7
{[%clk 0:00:12.3]} 74... Kc3 {[%clk 0:00:05.4]} 75. Kc6 {[%clk 0:00:13.2]} 75...
Kb4 {[%clk 0:00:06.2]} 76. Kxb6 {[%clk 0:00:14.1]} 76... Kc3 {[%clk 0:00:05.8]}
77. Kxc5 {[%clk 0:00:15]} 77... Kb3 {[%clk 0:00:05.8]} 78. Kb6 {[%clk
0:00:15.9]} 78... Ka3 {[%clk 0:00:06.7]} 79. c5 {[%clk 0:00:16]} 79... Kb4
{[%clk 0:00:07.6]} 80. c6 {[%clk 0:00:16.5]} 1-0